[Event "Titled Tuesday Blitz May 16 Early 2023"]
[White "Alex_Sahakyan2006"]
[Black "Sarana, Alexey"]
[BlackFideId "24133795"]
[WhiteElo "2632"]
[BlackElo "2714"]
[Result "1-0"]
[Round "02"]
[TimeControl "180+2"]
[Date "2023.05.16"]
[WhiteClock "0:00:09"]
[BlackClock "0:00:02"]

1. d4 {[%clk 0:03:00]}  Nf6 {[%clk 0:02:38]} 2. Nf3 {[%clk 0:02:59]}  d5 {[%clk 0:02:38]} 3. Bf4 {[%clk 0:02:59]}  c5 {[%clk 0:02:37]} 4. e3 {[%clk 0:02:59]}  Nc6 {[%clk 0:02:37]} 5. Nbd2 {[%clk 0:02:59]}  Qb6 {[%clk 0:02:37]} 6. dxc5 {[%clk 0:03:00]}  Qxb2 {[%clk 0:02:37]} 7. Rb1 {[%clk 0:03:00]}  Qa3 {[%clk 0:02:37]} 8. Nd4 {[%clk 0:02:41]}  a6 {[%clk 0:02:13]} 9. Nxc6 {[%clk 0:02:02]}  bxc6 {[%clk 0:02:14]} 10. Be5 {[%clk 0:01:58]}  e6 {[%clk 0:02:11]} 11. Nb3 {[%clk 0:01:53]}  Nd7 {[%clk 0:02:05]} 12. Bb2 {[%clk 0:01:50]}  Qb4+ {[%clk 0:01:56]} 13. c3 {[%clk 0:01:49]}  Qa4 {[%clk 0:01:45]} 14. c4 {[%clk 0:01:42]}  dxc4 {[%clk 0:01:33]} 15. Nd2 {[%clk 0:01:40]}  Qxd1+ {[%clk 0:01:27]} 16. Rxd1 {[%clk 0:01:40]}  Rb8 {[%clk 0:01:11]} 17. Bc3 {[%clk 0:01:29]}  Nxc5 {[%clk 0:01:06]} 18. Bxc4 {[%clk 0:01:22]}  f6 {[%clk 0:00:56]} 19. Ke2 {[%clk 0:01:14]}  Bd6 {[%clk 0:00:44]} 20. Nb3 {[%clk 0:00:50]}  Ne4 {[%clk 0:00:41]} 21. Ba5 {[%clk 0:00:50]}  Bb4 {[%clk 0:00:31]} 22. Rd8+ {[%clk 0:00:50]}  Ke7 {[%clk 0:00:27]} 23. Rxh8 {[%clk 0:00:46]}  Bxa5 {[%clk 0:00:23]} 24. Nxa5 {[%clk 0:00:44]}  Rb2+ {[%clk 0:00:24]} 25. Kf3 {[%clk 0:00:24]}  f5 {[%clk 0:00:24]} 26. Nxc6+ {[%clk 0:00:16]}  Kd6 {[%clk 0:00:23]} 27. Rd1+ {[%clk 0:00:14]}  Kxc6 {[%clk 0:00:18]} 28. Rxc8+ {[%clk 0:00:13]}  Kb7 {[%clk 0:00:19]} 29. Bxa6+ {[%clk 0:00:13]}  Kxa6 {[%clk 0:00:18]} 30. Kf4 {[%clk 0:00:14]}  Kb7 {[%clk 0:00:15]} 31. Rg8 {[%clk 0:00:12]}  Rxf2+ {[%clk 0:00:15]} 32. Ke5 {[%clk 0:00:13]}  Rxg2 {[%clk 0:00:16]} 33. Rd7+ {[%clk 0:00:12]}  Kc6 {[%clk 0:00:16]} 34. Rgxg7 {[%clk 0:00:11]}  Rxh2 {[%clk 0:00:11]} 35. Rxh7 {[%clk 0:00:11]}  Rxa2 {[%clk 0:00:09]} 36. Rc7+ {[%clk 0:00:12]}  Kb5 {[%clk 0:00:10]} 37. Rb7+ {[%clk 0:00:10]}  Kc4 {[%clk 0:00:10]} 38. Rhd7 {[%clk 0:00:09]}  Ra5+ {[%clk 0:00:07]} 39. Kf4 {[%clk 0:00:06]}  Nc5 {[%clk 0:00:05]} 40. Rbc7 {[%clk 0:00:06]}  Kb3 {[%clk 0:00:04]} 41. Re7 {[%clk 0:00:05]}  Nd3+ {[%clk 0:00:03]} 42. Kf3 {[%clk 0:00:05]}  Ra6 {[%clk 0:00:02]} 43. Rb7+ {[%clk 0:00:04]}  Kc3 {[%clk 0:00:03]} 44. Rec7+ {[%clk 0:00:04]}  Kd2 {[%clk 0:00:03]} 45. Rd7 {[%clk 0:00:05]}  e5 {[%clk 0:00:04]} 46. e4 {[%clk 0:00:04]}  f4 {[%clk 0:00:02]} 47. Rb3 {[%clk 0:00:04]}  Rg6 {[%clk 0:00:01]} 48. Rbxd3+ {[%clk 0:00:05]}  Kc2 {[%clk 0:00:02]} 49. Rd2+ {[%clk 0:00:05]}  Kc3 {[%clk 0:00:02]} 50. R7d3+ {[%clk 0:00:06]}  Kc4 {[%clk 0:00:03]} 51. Kf2 {[%clk 0:00:06]}  Rh6 {[%clk 0:00:03]} 52. Rd6 {[%clk 0:00:06]}  Rh2+ {[%clk 0:00:03]} 53. Kg1 {[%clk 0:00:06]}  Rh3 {[%clk 0:00:03]} 54. Rc6+ {[%clk 0:00:07]}  Kb3 {[%clk 0:00:03]} 55. Rd8 {[%clk 0:00:07]}  Rg3+ {[%clk 0:00:02]} 56. Kf2 {[%clk 0:00:08]}  Re3 {[%clk 0:00:02]} 57. Rb8+ {[%clk 0:00:08]}  Ka4 {[%clk 0:00:02]} 58. Ra6# {[%clk 0:00:09]} 1-0


[Site "https://www.chess.com"]

[Event "Titled Tuesday Blitz May 16 Early 2023"]
[White "Erigaisi Arjun"]
[Black "cryptoguru02"]
[WhiteFideId "35009192"]
[WhiteElo "2719"]
[BlackElo "2631"]
[Result "1-0"]
[Round "02"]
[TimeControl "180+2"]
[Date "2023.05.16"]
[WhiteClock "0:00:33"]
[BlackClock "0:00:00"]

1. b3 {[%clk 0:03:00]}  e5 {[%clk 0:02:56]} 2. Bb2 {[%clk 0:02:59]}  Nc6 {[%clk 0:02:56]} 3. c4 {[%clk 0:02:59]}  g6 {[%clk 0:02:55]} 4. e3 {[%clk 0:02:59]}  Bg7 {[%clk 0:02:55]} 5. Nf3 {[%clk 0:02:58]}  Nge7 {[%clk 0:02:54]} 6. d3 {[%clk 0:02:56]}  O-O {[%clk 0:02:54]} 7. Nc3 {[%clk 0:02:57]}  d6 {[%clk 0:02:49]} 8. Be2 {[%clk 0:02:56]}  f5 {[%clk 0:02:49]} 9. h4 {[%clk 0:02:54]}  h6 {[%clk 0:02:49]} 10. Qc2 {[%clk 0:02:53]}  Be6 {[%clk 0:02:49]} 11. a3 {[%clk 0:02:52]}  a5 {[%clk 0:02:48]} 12. Nb5 {[%clk 0:02:47]}  Qd7 {[%clk 0:02:32]} 13. d4 {[%clk 0:02:40]}  exd4 {[%clk 0:02:22]} 14. Nbxd4 {[%clk 0:02:35]}  Nxd4 {[%clk 0:02:21]} 15. Nxd4 {[%clk 0:02:36]}  Bf7 {[%clk 0:02:20]} 16. h5 {[%clk 0:02:34]}  g5 {[%clk 0:02:16]} 17. Bd3 {[%clk 0:02:25]}  Be6 {[%clk 0:01:52]} 18. O-O-O {[%clk 0:02:21]}  Kh8 {[%clk 0:01:49]} 19. f4 {[%clk 0:02:17]}  g4 {[%clk 0:01:40]} 20. Rhe1 {[%clk 0:02:14]}  d5 {[%clk 0:01:22]} 21. Nxe6 {[%clk 0:01:48]}  Qxe6 {[%clk 0:01:22]} 22. cxd5 {[%clk 0:01:49]}  Nxd5 {[%clk 0:01:20]} 23. Bc4 {[%clk 0:01:49]}  c6 {[%clk 0:01:11]} 24. e4 {[%clk 0:01:49]}  fxe4 {[%clk 0:01:06]} 25. Rxe4 {[%clk 0:01:50]}  Qf5 {[%clk 0:00:52]} 26. g3 {[%clk 0:01:36]}  Rad8 {[%clk 0:00:49]} 27. Rde1 {[%clk 0:01:29]}  Bxb2+ {[%clk 0:00:33]} 28. Qxb2+ {[%clk 0:01:30]}  Qf6 {[%clk 0:00:32]} 29. Re6 {[%clk 0:01:21]}  Qxb2+ {[%clk 0:00:26]} 30. Kxb2 {[%clk 0:01:21]}  b5 {[%clk 0:00:14]} 31. Rxh6+ {[%clk 0:01:20]}  Kg7 {[%clk 0:00:14]} 32. Rg6+ {[%clk 0:01:20]}  Kh7 {[%clk 0:00:15]} 33. Bd3 {[%clk 0:01:10]}  Nxf4 {[%clk 0:00:14]} 34. Re7+ {[%clk 0:01:10]}  Kh8 {[%clk 0:00:13]} 35. Rh6+ {[%clk 0:01:10]}  Kg8 {[%clk 0:00:13]} 36. Bh7+ {[%clk 0:01:10]}  Kh8 {[%clk 0:00:14]} 37. gxf4 {[%clk 0:01:07]}  Rxf4 {[%clk 0:00:13]} 38. Bc2+ {[%clk 0:00:45]}  Kg8 {[%clk 0:00:12]} 39. Rxc6 {[%clk 0:00:44]}  Rf2 {[%clk 0:00:08]} 40. h6 {[%clk 0:00:43]}  b4 {[%clk 0:00:06]} 41. axb4 {[%clk 0:00:42]}  axb4 {[%clk 0:00:07]} 42. Rg7+ {[%clk 0:00:41]}  Kh8 {[%clk 0:00:08]} 43. Rxg4 {[%clk 0:00:37]}  Rh2 {[%clk 0:00:05]} 44. Rxb4 {[%clk 0:00:36]}  Rf8 {[%clk 0:00:00]} 45. Rbc4 {[%clk 0:00:33]} 1-0


[Site "https://www.chess.com"]

[Event "Titled Tuesday Blitz May 16 Early 2023"]
[White "Demchenko, Anton"]
[Black "Manukyan, Sargis A."]
[WhiteFideId "4160258"]
[BlackFideId "13303970"]
[WhiteElo "2545"]
[BlackElo "2187"]
[Result "1-0"]
[Round "02"]
[TimeControl "180+2"]
[Date "2023.05.16"]
[WhiteClock "0:00:26"]
[BlackClock "0:00:15"]

1. e4 {[%clk 0:02:57]}  c5 {[%clk 0:03:00]} 2. Nc3 {[%clk 0:02:52]}  d6 {[%clk 0:03:00]} 3. Bb5+ {[%clk 0:02:52]}  Bd7 {[%clk 0:03:00]} 4. a4 {[%clk 0:02:47]}  Nf6 {[%clk 0:02:59]} 5. f4 {[%clk 0:02:45]}  g6 {[%clk 0:02:53]} 6. Nf3 {[%clk 0:02:43]}  Bg7 {[%clk 0:02:54]} 7. O-O {[%clk 0:02:42]}  O-O {[%clk 0:02:54]} 8. d3 {[%clk 0:02:41]}  Nc6 {[%clk 0:02:51]} 9. h3 {[%clk 0:02:40]}  Nd4 {[%clk 0:02:49]} 10. Be3 {[%clk 0:02:39]}  Nxb5 {[%clk 0:02:46]} 11. axb5 {[%clk 0:02:40]}  a6 {[%clk 0:02:45]} 12. bxa6 {[%clk 0:02:38]}  Rxa6 {[%clk 0:02:45]} 13. Rxa6 {[%clk 0:02:37]}  bxa6 {[%clk 0:02:46]} 14. b3 {[%clk 0:02:33]}  Bc6 {[%clk 0:02:46]} 15. Qd2 {[%clk 0:02:30]}  d5 {[%clk 0:02:32]} 16. exd5 {[%clk 0:01:57]}  Nxd5 {[%clk 0:02:31]} 17. Nxd5 {[%clk 0:01:57]}  Qxd5 {[%clk 0:02:29]} 18. Qf2 {[%clk 0:01:58]}  Qd6 {[%clk 0:01:36]} 19. Ne5 {[%clk 0:01:51]}  Bxe5 {[%clk 0:01:32]} 20. fxe5 {[%clk 0:01:32]}  Qxe5 {[%clk 0:01:32]} 21. Bh6 {[%clk 0:01:32]}  f6 {[%clk 0:01:10]} 22. Re1 {[%clk 0:01:31]}  Qd6 {[%clk 0:00:53]} 23. Bxf8 {[%clk 0:01:32]}  Kxf8 {[%clk 0:00:54]} 24. Ra1 {[%clk 0:01:32]}  Bb7 {[%clk 0:00:52]} 25. Ra5 {[%clk 0:01:32]}  c4 {[%clk 0:00:36]} 26. bxc4 {[%clk 0:01:21]}  Qb4 {[%clk 0:00:35]} 27. Ra1 {[%clk 0:01:11]}  a5 {[%clk 0:00:31]} 28. Qe1 {[%clk 0:00:42]}  Qc5+ {[%clk 0:00:23]} 29. Kh1 {[%clk 0:00:41]}  Qf5 {[%clk 0:00:18]} 30. Qe3 {[%clk 0:00:35]}  h5 {[%clk 0:00:16]} 31. Re1 {[%clk 0:00:31]}  Kf7 {[%clk 0:00:15]} 32. Qxe7+ {[%clk 0:00:31]}  Kg8 {[%clk 0:00:15]} 33. Qe6+ {[%clk 0:00:31]}  Kg7 {[%clk 0:00:12]} 34. Qxf5 {[%clk 0:00:30]}  gxf5 {[%clk 0:00:13]} 35. Re7+ {[%clk 0:00:30]}  Kg6 {[%clk 0:00:12]} 36. Rxb7 {[%clk 0:00:31]}  f4 {[%clk 0:00:13]} 37. Ra7 {[%clk 0:00:32]}  Kg5 {[%clk 0:00:14]} 38. Rxa5+ {[%clk 0:00:31]}  Kh4 {[%clk 0:00:15]} 39. Rf5 {[%clk 0:00:31]}  f3 {[%clk 0:00:15]} 40. Rxf3 {[%clk 0:00:30]}  f5 {[%clk 0:00:15]} 41. Rxf5 {[%clk 0:00:26]}  Kg3 {[%clk 0:00:15]} 1-0


[Site "https://www.chess.com"]

[Event "Titled Tuesday Blitz May 16 Early 2023"]
[White "Korchmar, Vasiliy"]
[Black "Madaminov, Mukhiddin"]
[WhiteFideId "24131750"]
[BlackFideId "14210703"]
[WhiteElo "2370"]
[BlackElo "2511"]
[Result "1-0"]
[Round "02"]
[TimeControl "180+2"]
[Date "2023.05.16"]
[WhiteClock "0:00:21"]
[BlackClock "0:00:15"]

1. e4 {[%clk 0:03:00]}  c5 {[%clk 0:03:00]} 2. Nf3 {[%clk 0:03:00]}  d6 {[%clk 0:03:01]} 3. d4 {[%clk 0:03:01]}  cxd4 {[%clk 0:03:01]} 4. Nxd4 {[%clk 0:03:02]}  Nf6 {[%clk 0:03:02]} 5. Nc3 {[%clk 0:03:02]}  Nc6 {[%clk 0:03:02]} 6. Be2 {[%clk 0:02:58]}  e6 {[%clk 0:02:57]} 7. Be3 {[%clk 0:02:55]}  Bd7 {[%clk 0:02:54]} 8. g4 {[%clk 0:02:52]}  Nxd4 {[%clk 0:02:47]} 9. Bxd4 {[%clk 0:02:49]}  Bc6 {[%clk 0:02:45]} 10. f3 {[%clk 0:02:40]}  a6 {[%clk 0:02:38]} 11. Qd2 {[%clk 0:02:35]}  Qc7 {[%clk 0:02:06]} 12. O-O-O {[%clk 0:02:33]}  O-O-O {[%clk 0:02:03]} 13. Kb1 {[%clk 0:02:27]}  h6 {[%clk 0:01:58]} 14. Qe3 {[%clk 0:02:23]}  Nd7 {[%clk 0:01:51]} 15. Qf2 {[%clk 0:02:23]}  Rg8 {[%clk 0:01:44]} 16. h4 {[%clk 0:02:22]}  Be7 {[%clk 0:01:43]} 17. Rd2 {[%clk 0:02:18]}  Kb8 {[%clk 0:01:36]} 18. Rhd1 {[%clk 0:02:17]}  Rc8 {[%clk 0:01:37]} 19. f4 {[%clk 0:01:48]}  g6 {[%clk 0:01:34]} 20. g5 {[%clk 0:01:45]}  hxg5 {[%clk 0:01:27]} 21. hxg5 {[%clk 0:01:46]}  e5 {[%clk 0:01:23]} 22. fxe5 {[%clk 0:01:38]}  Nxe5 {[%clk 0:01:20]} 23. Bb6 {[%clk 0:00:47]}  Qd7 {[%clk 0:01:17]} 24. Bc5 {[%clk 0:00:47]}  Rgd8 {[%clk 0:01:07]} 25. Bb6 {[%clk 0:00:41]}  Rh8 {[%clk 0:01:06]} 26. Bc5 {[%clk 0:00:40]}  Rcd8 {[%clk 0:00:50]} 27. Bb6 {[%clk 0:00:34]}  Rde8 {[%clk 0:00:22]} 28. Bc5 {[%clk 0:00:34]}  Qc8 {[%clk 0:00:08]} 29. Bxd6+ {[%clk 0:00:30]}  Bxd6 {[%clk 0:00:09]} 30. Rxd6 {[%clk 0:00:31]}  Re7 {[%clk 0:00:07]} 31. Qb6 {[%clk 0:00:19]}  Qc7 {[%clk 0:00:08]} 32. Rd8+ {[%clk 0:00:18]}  Rxd8 {[%clk 0:00:04]} 33. Rxd8+ {[%clk 0:00:19]}  Qc8 {[%clk 0:00:03]} 34. Rxc8+ {[%clk 0:00:19]}  Kxc8 {[%clk 0:00:04]} 35. Nd5 {[%clk 0:00:20]}  Bxd5 {[%clk 0:00:03]} 36. exd5 {[%clk 0:00:20]}  Nf3 {[%clk 0:00:02]} 37. Qc5+ {[%clk 0:00:18]}  Kd7 {[%clk 0:00:03]} 38. Qxe7+ {[%clk 0:00:17]}  Kxe7 {[%clk 0:00:04]} 39. Bxf3 {[%clk 0:00:18]}  Kd6 {[%clk 0:00:05]} 40. c4 {[%clk 0:00:18]}  b5 {[%clk 0:00:05]} 41. b3 {[%clk 0:00:18]}  bxc4 {[%clk 0:00:06]} 42. bxc4 {[%clk 0:00:19]}  Kc5 {[%clk 0:00:07]} 43. Kc2 {[%clk 0:00:19]}  Kd6 {[%clk 0:00:08]} 44. Kd3 {[%clk 0:00:20]}  Kc5 {[%clk 0:00:09]} 45. Ke4 {[%clk 0:00:20]}  a5 {[%clk 0:00:09]} 46. a3 {[%clk 0:00:19]}  a4 {[%clk 0:00:09]} 47. Ke5 {[%clk 0:00:18]}  Kxc4 {[%clk 0:00:09]} 48. d6 {[%clk 0:00:18]}  f6+ {[%clk 0:00:10]} 49. Kxf6 {[%clk 0:00:18]}  Kb3 {[%clk 0:00:10]} 50. Bd1+ {[%clk 0:00:18]}  Kxa3 {[%clk 0:00:10]} 51. Bxa4 {[%clk 0:00:19]}  Kxa4 {[%clk 0:00:11]} 52. d7 {[%clk 0:00:19]}  Kb5 {[%clk 0:00:12]} 53. d8=Q {[%clk 0:00:20]}  Ka6 {[%clk 0:00:12]} 54. Qb8 {[%clk 0:00:20]}  Ka5 {[%clk 0:00:12]} 55. Ke5 {[%clk 0:00:20]}  Ka4 {[%clk 0:00:13]} 56. Kd4 {[%clk 0:00:21]}  Ka5 {[%clk 0:00:14]} 57. Kc5 {[%clk 0:00:21]}  Ka6 {[%clk 0:00:15]} 58. Qa8# {[%clk 0:00:21]} 1-0


[Site "https://www.chess.com"]

[Event "Titled Tuesday Blitz May 16 Early 2023"]
[White "Makarian, Rudik"]
[Black "Levitskiy, Andrey"]
[WhiteFideId "44105681"]
[BlackFideId "14132885"]
[WhiteElo "2461"]
[BlackElo "2347"]
[Result "1-0"]
[Round "02"]
[TimeControl "180+2"]
[Date "2023.05.16"]
[WhiteClock "0:00:04"]
[BlackClock "0:00:04"]

1. d4 {[%clk 0:03:00]}  Nf6 {[%clk 0:02:59]} 2. c4 {[%clk 0:03:01]}  e6 {[%clk 0:02:59]} 3. Nf3 {[%clk 0:03:02]}  Bb4+ {[%clk 0:02:59]} 4. Bd2 {[%clk 0:03:02]}  Qe7 {[%clk 0:02:59]} 5. g3 {[%clk 0:03:01]}  Bxd2+ {[%clk 0:02:59]} 6. Qxd2 {[%clk 0:03:01]}  Nc6 {[%clk 0:03:00]} 7. Nc3 {[%clk 0:03:01]}  d5 {[%clk 0:03:00]} 8. Bg2 {[%clk 0:02:55]}  dxc4 {[%clk 0:02:58]} 9. O-O {[%clk 0:02:54]}  O-O {[%clk 0:02:57]} 10. Rfd1 {[%clk 0:02:46]}  a6 {[%clk 0:02:38]} 11. Rac1 {[%clk 0:02:33]}  Rd8 {[%clk 0:02:34]} 12. Qg5 {[%clk 0:02:04]}  Nd5 {[%clk 0:01:59]} 13. Ne4 {[%clk 0:01:53]}  f6 {[%clk 0:01:41]} 14. Qd2 {[%clk 0:01:48]}  Nb6 {[%clk 0:01:33]} 15. Qc3 {[%clk 0:01:42]}  Nb4 {[%clk 0:01:23]} 16. Qa3 {[%clk 0:01:34]}  a5 {[%clk 0:00:52]} 17. Ned2 {[%clk 0:01:16]}  Bd7 {[%clk 0:00:43]} 18. Nxc4 {[%clk 0:00:45]}  Nxc4 {[%clk 0:00:43]} 19. Rxc4 {[%clk 0:00:46]}  Bb5 {[%clk 0:00:44]} 20. Rc5 {[%clk 0:00:41]}  Bxe2 {[%clk 0:00:39]} 21. Re1 {[%clk 0:00:42]}  Ba6 {[%clk 0:00:12]} 22. Rxa5 {[%clk 0:00:36]}  Nc6 {[%clk 0:00:13]} 23. Qxe7 {[%clk 0:00:35]}  Nxe7 {[%clk 0:00:13]} 24. Rxe6 {[%clk 0:00:32]}  Nc6 {[%clk 0:00:14]} 25. Rc5 {[%clk 0:00:24]}  Nxd4 {[%clk 0:00:09]} 26. Re1 {[%clk 0:00:13]}  c6 {[%clk 0:00:02]} 27. h4 {[%clk 0:00:11]}  Nxf3+ {[%clk 0:00:02]} 28. Bxf3 {[%clk 0:00:12]}  Rd7 {[%clk 0:00:02]} 29. b4 {[%clk 0:00:09]}  Rad8 {[%clk 0:00:02]} 30. a4 {[%clk 0:00:10]}  Rd2 {[%clk 0:00:01]} 31. b5 {[%clk 0:00:10]}  cxb5 {[%clk 0:00:02]} 32. axb5 {[%clk 0:00:11]}  R2d3 {[%clk 0:00:02]} 33. Be4 {[%clk 0:00:06]}  Re8 {[%clk 0:00:02]} 34. Bxd3 {[%clk 0:00:06]}  Rxe1+ {[%clk 0:00:02]} 35. Kg2 {[%clk 0:00:04]}  b6 {[%clk 0:00:02]} 36. Rc7 {[%clk 0:00:04]}  Bxb5 {[%clk 0:00:01]} 37. Bxb5 {[%clk 0:00:04]}  Rb1 {[%clk 0:00:02]} 38. Bc4+ {[%clk 0:00:04]}  Kf8 {[%clk 0:00:03]} 39. Rf7+ {[%clk 0:00:04]}  Ke8 {[%clk 0:00:04]} 40. Rxg7 {[%clk 0:00:05]}  b5 {[%clk 0:00:04]} 41. Bf7+ {[%clk 0:00:04]}  Kf8 {[%clk 0:00:04]} 42. Rxh7 {[%clk 0:00:05]}  b4 {[%clk 0:00:04]} 43. Bd5 {[%clk 0:00:05]}  b3 {[%clk 0:00:04]} 44. Rb7 {[%clk 0:00:04]}  b2 {[%clk 0:00:04]} 45. Ba2 {[%clk 0:00:04]} 1-0


[Site "https://www.chess.com"]

[Event "Titled Tuesday Blitz May 16 Early 2023"]
[White "Lazavik, Denis"]
[Black "Fromm, Marius"]
[WhiteFideId "13515110"]
[BlackFideId "12993190"]
[WhiteElo "2560"]
[BlackElo "2325"]
[Result "1/2-1/2"]
[Round "02"]
[TimeControl "180+2"]
[Date "2023.05.16"]
[WhiteClock "0:00:06"]
[BlackClock "0:00:10"]

1. d4 {[%clk 0:03:00]}  d5 {[%clk 0:02:58]} 2. c4 {[%clk 0:03:01]}  dxc4 {[%clk 0:02:59]} 3. Nf3 {[%clk 0:03:00]}  Nf6 {[%clk 0:02:59]} 4. e3 {[%clk 0:03:01]}  e6 {[%clk 0:03:00]} 5. Bxc4 {[%clk 0:03:01]}  c5 {[%clk 0:03:00]} 6. O-O {[%clk 0:03:01]}  a6 {[%clk 0:03:01]} 7. b3 {[%clk 0:02:58]}  Nbd7 {[%clk 0:02:54]} 8. Bb2 {[%clk 0:02:57]}  Be7 {[%clk 0:02:53]} 9. dxc5 {[%clk 0:02:53]}  Bxc5 {[%clk 0:02:53]} 10. Nbd2 {[%clk 0:02:52]}  O-O {[%clk 0:02:52]} 11. Rc1 {[%clk 0:02:47]}  Qe7 {[%clk 0:02:49]} 12. Qc2 {[%clk 0:02:42]}  b6 {[%clk 0:02:45]} 13. Ne4 {[%clk 0:02:31]}  Bb7 {[%clk 0:02:43]} 14. Nxc5 {[%clk 0:02:29]}  Qxc5 {[%clk 0:02:30]} 15. Be2 {[%clk 0:02:25]}  Qxc2 {[%clk 0:02:26]} 16. Rxc2 {[%clk 0:02:25]}  Rfc8 {[%clk 0:02:26]} 17. Rfc1 {[%clk 0:02:24]}  Rxc2 {[%clk 0:02:26]} 18. Rxc2 {[%clk 0:02:25]}  Rc8 {[%clk 0:02:26]} 19. Rxc8+ {[%clk 0:02:25]}  Bxc8 {[%clk 0:02:27]} 20. Nd2 {[%clk 0:02:22]}  a5 {[%clk 0:02:17]} 21. e4 {[%clk 0:02:16]}  Nc5 {[%clk 0:02:14]} 22. f3 {[%clk 0:02:15]}  Ba6 {[%clk 0:02:13]} 23. Bxa6 {[%clk 0:02:05]}  Nxa6 {[%clk 0:02:14]} 24. Nc4 {[%clk 0:01:37]}  Nd7 {[%clk 0:02:13]} 25. Kf2 {[%clk 0:01:11]}  Nb4 {[%clk 0:02:06]} 26. a3 {[%clk 0:01:10]}  Nd3+ {[%clk 0:02:02]} 27. Ke3 {[%clk 0:01:10]}  Nxb2 {[%clk 0:02:03]} 28. Nxb2 {[%clk 0:01:11]}  Nc5 {[%clk 0:01:29]} 29. b4 {[%clk 0:01:09]}  axb4 {[%clk 0:01:29]} 30. axb4 {[%clk 0:01:09]}  Na6 {[%clk 0:01:30]} 31. Nd3 {[%clk 0:01:03]}  Kf8 {[%clk 0:01:28]} 32. Kd4 {[%clk 0:00:59]}  b5 {[%clk 0:01:28]} 33. Kc3 {[%clk 0:00:25]}  Ke7 {[%clk 0:01:26]} 34. Ne5 {[%clk 0:00:23]}  f6 {[%clk 0:01:11]} 35. Nc6+ {[%clk 0:00:22]}  Kd6 {[%clk 0:01:09]} 36. Nd4 {[%clk 0:00:23]}  Nc7 {[%clk 0:01:10]} 37. g3 {[%clk 0:00:20]}  g6 {[%clk 0:01:07]} 38. Ne2 {[%clk 0:00:17]}  e5 {[%clk 0:01:05]} 39. Kd3 {[%clk 0:00:17]}  Ne6 {[%clk 0:01:02]} 40. Ke3 {[%clk 0:00:15]}  Nc7 {[%clk 0:00:43]} 41. Nc3 {[%clk 0:00:14]}  Kc6 {[%clk 0:00:42]} 42. f4 {[%clk 0:00:14]}  Na6 {[%clk 0:00:42]} 43. Nd5 {[%clk 0:00:13]}  exf4+ {[%clk 0:00:37]} 44. Kxf4 {[%clk 0:00:10]}  f5 {[%clk 0:00:37]} 45. Ke5 {[%clk 0:00:08]}  fxe4 {[%clk 0:00:36]} 46. Kxe4 {[%clk 0:00:09]}  Kd6 {[%clk 0:00:35]} 47. h4 {[%clk 0:00:09]}  h6 {[%clk 0:00:32]} 48. g4 {[%clk 0:00:09]}  h5 {[%clk 0:00:26]} 49. g5 {[%clk 0:00:08]}  Ke6 {[%clk 0:00:24]} 50. Nf4+ {[%clk 0:00:08]}  Kf7 {[%clk 0:00:24]} 51. Nd3 {[%clk 0:00:09]}  Ke6 {[%clk 0:00:21]} 52. Kd4 {[%clk 0:00:07]}  Kd6 {[%clk 0:00:17]} 53. Nf4 {[%clk 0:00:05]}  Nxb4 {[%clk 0:00:17]} 54. Nxg6 {[%clk 0:00:05]}  Nd5 {[%clk 0:00:15]} 55. Ne5 {[%clk 0:00:04]}  Nf4 {[%clk 0:00:13]} 56. Nf3 {[%clk 0:00:03]}  Ng6 {[%clk 0:00:11]} 57. Ke4 {[%clk 0:00:03]}  Ke6 {[%clk 0:00:08]} 58. Nd4+ {[%clk 0:00:03]}  Kf7 {[%clk 0:00:07]} 59. Nf5 {[%clk 0:00:03]}  b4 {[%clk 0:00:07]} 60. Kd4 {[%clk 0:00:03]}  Ke6 {[%clk 0:00:07]} 61. Ng7+ {[%clk 0:00:04]}  Ke7 {[%clk 0:00:08]} 62. Nxh5 {[%clk 0:00:04]}  Nxh4 {[%clk 0:00:08]} 63. Kc4 {[%clk 0:00:05]}  Kf7 {[%clk 0:00:09]} 64. Kxb4 {[%clk 0:00:05]}  Kg6 {[%clk 0:00:09]} 65. Nf4+ {[%clk 0:00:06]}  Kxg5 {[%clk 0:00:10]} 1/2-1/2


[Site "https://www.chess.com"]

[Event "Titled Tuesday Blitz May 16 Early 2023"]
[White "Herrera Ortiz, Miguel"]
[Black "Hakobyan, Aram"]
[WhiteFideId "5100550"]
[BlackFideId "13306677"]
[WhiteElo "2619"]
[BlackElo "2584"]
[Result "0-1"]
[Round "02"]
[TimeControl "180+2"]
[Date "2023.05.16"]
[WhiteClock "0:01:12"]
[BlackClock "0:01:30"]

1. e4 {[%clk 0:02:55]}  e5 {[%clk 0:02:59]} 2. Nf3 {[%clk 0:02:50]}  Nc6 {[%clk 0:02:59]} 3. Bc4 {[%clk 0:02:50]}  Bc5 {[%clk 0:02:56]} 4. c3 {[%clk 0:02:49]}  Nf6 {[%clk 0:02:56]} 5. d4 {[%clk 0:02:49]}  exd4 {[%clk 0:02:55]} 6. e5 {[%clk 0:02:49]}  d5 {[%clk 0:02:53]} 7. Bb5 {[%clk 0:02:49]}  Ne4 {[%clk 0:02:54]} 8. cxd4 {[%clk 0:02:49]}  Bb6 {[%clk 0:02:54]} 9. Nc3 {[%clk 0:02:47]}  O-O {[%clk 0:02:53]} 10. h3 {[%clk 0:02:35]}  Ba5 {[%clk 0:02:21]} 11. Bd2 {[%clk 0:02:24]}  Nxd2 {[%clk 0:02:19]} 12. Qxd2 {[%clk 0:02:24]}  Ne7 {[%clk 0:02:18]} 13. O-O {[%clk 0:02:23]}  Bf5 {[%clk 0:02:15]} 14. Bd3 {[%clk 0:02:23]}  Bxd3 {[%clk 0:02:14]} 15. Qxd3 {[%clk 0:02:23]}  c6 {[%clk 0:02:14]} 16. Ne2 {[%clk 0:02:22]}  Ng6 {[%clk 0:02:14]} 17. g3 {[%clk 0:02:19]}  f6 {[%clk 0:02:11]} 18. a3 {[%clk 0:02:10]}  Bb6 {[%clk 0:02:09]} 19. Rae1 {[%clk 0:02:02]}  fxe5 {[%clk 0:02:07]} 20. Nxe5 {[%clk 0:01:52]}  Nxe5 {[%clk 0:02:03]} 21. dxe5 {[%clk 0:01:53]}  Qg5 {[%clk 0:02:02]} 22. Nd4 {[%clk 0:01:44]}  Rae8 {[%clk 0:01:58]} 23. f4 {[%clk 0:01:40]}  Qg6 {[%clk 0:01:32]} 24. Qc3 {[%clk 0:01:12]}  Bxd4+ {[%clk 0:01:30]} 0-1


[Site "https://www.chess.com"]